bitfinex/quotes_ETHUSD_20241022
["timestamp","ask_amount","ask_price","bid_price","bid_amount"]
[1729624022517,1.77728806,2626.7,2626.5,0.7967506]
[1729624022720,5.58433806,2626.7,2626.5,0.7967506]
[1729624023219,5.47771484,2626.6,2626.4,0.7967506]
[1729624023414,0.10668745,2626.5,2626.4,0.7967506]
[1729624023984,0.10668745,2626.5,2626.4,1.1969611]
[1729624024205,0.10668745,2626.5,2626.2,6.15279912]
[1729624024206,0.10668745,2626.5,2626.3,1.1969611]
[1729624024406,0.10668745,2626.5,2626.4,1.1969611]
[1729624024716,3.80707,2626.7,2626.4,1.1969611]
[1729624024921,4.10389,2626.9,2626.4,1.1969611]
[1729624024922,0.10668745,2626.5,2626.4,5.8146511]
[1729624025079,5.47726484,2626.9,2626.4,4.69383115]
[1729624025420,5.47726484,2626.9,2626.6,0.79707558]
[1729624025718,5.47726484,2626.9,2626.7,0.79707558]
[1729624026076,3.80677,2626.9,2626.7,0.79707558]
[1729624026591,5.47726484,2626.9,2626.7,0.79707558]
[1729624027212,3.80656,2627.1,2626.8,0.7847]
[1729624027415,5.47705484,2627.1,2626.8,1.99851201]
[1729624027724,3.80656,2627.1,2626.8,1.99851201]
[1729624027926,1.67049484,2627.0,2626.8,1.99851201]
[1729624029125,5.47701484,2627.1,2626.8,1.99851201]
[1729624029506,1.67049484,2627.0,2626.8,1.99851201]
[1729624031723,5.47701484,2627.1,2626.8,1.99851201]
[1729624032300,1.67049484,2627.0,2626.8,1.99851201]
[1729624033725,0.09979594,2626.9,2626.8,1.99851201]
[1729624035330,1.77029078,2626.9,2626.7,0.79707558]
[1729624035498,1.77029078,2626.9,2626.6,0.79707558]
[1729624035499,5.47740484,2626.8,2626.6,0.79707558]
[1729624035832,5.47754484,2626.7,2626.6,0.79707558]
[1729624036132,1.77021971,2626.7,2626.6,0.79707558]
[1729624036633,5.57726971,2626.7,2626.6,0.79707558]
[1729624036819,3.8072,2626.6,2626.5,0.79707558]
[1729624037004,5.57735147,2626.6,2626.4,1.99268895]
[1729624037250,5.57735147,2626.6,2626.5,0.79707558]
[1729624037798,5.57735147,2626.6,2626.4,0.79707558]
[1729624038079,3.80734,2626.5,2626.3,1.19561337]
[1729624038283,5.47783484,2626.5,2626.3,1.19561337]
[1729624038586,0.09954193,2626.4,2626.3,1.19561337]
[1729624038781,0.09954193,2626.4,2626.2,2.37884912]
[1729624039080,0.09954193,2626.4,2626.3,1.19580297]
[1729624039288,0.09954193,2626.4,2626.2,2.37884912]
[1729624039458,0.09954193,2626.4,2626.3,1.19585717]
[1729624040385,0.09954193,2626.4,2626.2,3.49682475]
[1729624040573,5.47790484,2626.5,2626.3,1.19579436]
[1729624041080,5.47293701,2626.5,2626.3,1.19579436]
[1729624042294,5.47293701,2626.5,2626.4,1.19579436]
[1729624042605,5.47293701,2626.5,2626.3,1.19579436]
[1729624044071,1.66552701,2626.5,2626.3,1.19579436]
[1729624044276,0.297,2626.8,2626.3,2.92589482]
[1729624044464,0.297,2626.8,2626.6,0.79704167]
[1729624044666,1.67049484,2626.7,2626.6,0.79704167]
[1729624045605,1.67049484,2626.7,2626.4,1.19579436]
[1729624045606,1.67049484,2626.7,2626.5,0.79704167]
[1729624045772,1.67049484,2626.7,2626.6,0.79704167]
[1729624048582,1.96749484,2626.8,2626.6,0.79704167]
[1729624048782,0.09579619,2626.7,2626.6,0.79704167]
[1729624049089,1.96749484,2626.8,2626.6,0.79704167]
[1729624049527,0.09579619,2626.7,2626.6,0.79704167]
[1729624049893,1.96749484,2626.8,2626.6,0.79704167]
[1729624050238,0.09579619,2626.7,2626.6,0.79704167]
[1729624050517,1.96749484,2626.8,2626.6,0.79704167]
[1729624050728,0.09579619,2626.7,2626.6,0.79704167]
[1729624051228,0.09260173,2626.7,2626.6,0.79704167]
[1729624051394,1.67049484,2626.7,2626.5,4.60438167]
[1729624051727,1.67049484,2626.7,2626.6,0.79704167]
[1729624053024,1.96749484,2626.8,2626.6,0.79704167]
[1729624053227,1.67049484,2626.8,2626.6,0.79704167]
[1729624054200,0.297,2627.0,2626.6,0.79704167]
[1729624054522,1.67049484,2626.9,2626.7,1.37705927]
[1729624054877,1.67049484,2626.9,2626.7,0.79704167]
[1729624056725,1.67049484,2626.8,2626.7,0.79704167]
[1729624056931,1.67049484,2626.8,2626.6,4.60422167]
[1729624057133,1.67049484,2626.8,2626.7,0.79704167]
[1729624058722,5.77440484,2626.8,2626.6,0.79704167]
[1729624058928,1.67049484,2626.7,2626.6,0.79704167]
[1729624063640,1.75695532,2626.7,2626.6,0.79704167]
[1729624065146,1.67049484,2626.7,2626.6,0.79704167]
[1729624065503,1.75693139,2626.7,2626.6,0.79704167]
[1729624065931,0.08643655,2626.7,2626.6,0.79704167]
[1729624066326,1.67049484,2626.8,2626.6,0.79704167]
[1729624066531,0.08641951,2626.7,2626.6,0.79704167]
[1729624066728,0.08641951,2626.7,2626.6,6.15101319]
[1729624066931,3.80663,2627.0,2626.6,1.54677152]
[1729624066932,1.67049484,2626.8,2626.6,1.54677152]
[1729624067117,1.67049484,2626.8,2626.7,0.79599073]
[1729624069640,1.67049484,2626.9,2626.7,0.79599073]
[1729624074423,1.67049484,2626.8,2626.7,0.79599073]
[1729624077120,1.67049484,2626.8,2626.6,1.60339073]
[1729624077320,1.67049484,2626.8,2626.7,0.79599073]
[1729624078737,1.7560292,2626.8,2626.7,0.79599073]
[1729624078938,1.7560292,2626.8,2626.6,0.79599073]
[1729624078939,4.10405,2626.7,2626.6,0.79599073]
[1729624079324,4.18953791,2626.7,2626.6,0.79599073]
[1729624080667,5.86003275,2626.7,2626.6,0.79599073]
[1729624081868,4.18953791,2626.7,2626.6,0.79599073]
[1729624082203,5.86003275,2626.7,2626.6,0.79599073]
[1729624083540,2.05298275,2626.7,2626.6,0.79599073]
[1729624083945,2.05298275,2626.7,2626.5,1.19178509]
[1729624087390,2.05298275,2626.7,2626.6,0.28454523]
[1729624090991,5.86003275,2626.7,2626.5,1.19178509]
[1729624091151,1.67049484,2626.6,2626.5,1.19178509]
[1729624091352,1.75594061,2626.6,2626.5,1.4763291]
[1729624092402,5.56314061,2626.6,2626.5,1.4763291]
[1729624092700,3.80742,2626.5,2626.2,1.59354912]
[1729624092846,1.67049484,2626.4,2626.2,1.59354912]
[1729624093051,1.75578552,2626.4,2626.3,1.19527087]
[1729624096479,1.75578552,2626.4,2626.2,1.19527087]
[1729624098493,1.67049484,2626.3,2626.2,1.19527087]
[1729624098682,1.75573661,2626.3,2626.2,1.19527087]
[1729624098877,1.75573661,2626.3,2626.1,1.19527087]
[1729624099198,1.75573661,2626.3,2626.2,1.19527087]
[1729624100483,5.86036661,2626.3,2626.2,0.79626713]
[1729624100715,5.86036661,2626.3,2626.0,0.79626713]
[1729624100987,1.67049484,2626.2,2626.0,0.79626713]
[1729624101189,1.67049484,2626.1,2625.9,1.19444667]
[1729624101500,1.75543112,2626.1,2626.0,0.79632924]
[1729624101887,1.67049484,2626.1,2626.0,0.79632924]
[1729624102215,5.47841484,2626.1,2625.9,0.79632924]
[1729624102395,1.67049484,2626.0,2625.9,0.79632924]
[1729624102594,1.75533613,2626.0,2625.9,0.79632924]
[1729624103596,0.08484129,2626.0,2625.9,0.79632924]
[1729624104218,1.75533613,2626.0,2625.9,0.79632924]
[1729624104416,1.75533613,2626.0,2625.8,0.79632924]
[1729624104621,1.75533613,2626.0,2625.8,4.60467924]
[1729624104827,0.08484129,2626.0,2625.8,4.60467924]
[1729624105021,0.08484129,2626.0,2625.9,0.79632924]
[1729624105226,1.75533613,2626.0,2625.9,0.79632924]
[1729624105597,1.75533613,2626.0,2625.8,4.60467924]
[1729624106332,0.08484129,2626.0,2625.8,4.60467924]
[1729624106529,1.67049484,2626.1,2625.8,4.60467924]
[1729624106687,1.67049484,2626.0,2625.8,0.79632924]
[1729624106888,0.08478447,2625.9,2625.8,0.79632924]
[1729624107636,0.08478447,2625.9,2625.8,4.60468924]
[1729624107927,5.47830484,2626.2,2625.8,3.80836]
[1729624108131,1.75535479,2626.1,2625.8,4.6043091]
[1729624108492,0.08485995,2626.1,2625.9,4.6040991]
[1729624108926,0.08482221,2626.0,2625.9,4.6040991]
[1729624109109,1.67049484,2626.2,2625.9,4.6040991]
[1729624109313,0.08485995,2626.1,2625.9,4.6040991]
[1729624109755,1.75535479,2626.1,2625.9,4.6040991]
[1729624110042,1.75535479,2626.1,2625.8,6.19957116]
[1729624110043,1.75535479,2626.1,2625.8,5.80107359]
[1729624110237,1.75535479,2626.1,2625.8,4.6042091]
[1729624110527,0.08480313,2626.0,2625.8,4.6042091]
[1729624110834,0.08480313,2626.0,2625.9,0.7959491]
[1729624111543,0.08480313,2626.0,2625.9,4.6041591]
[1729624111897,0.08480313,2626.0,2625.9,5.3740591]
[1729624112093,1.67049484,2626.4,2626.0,3.80806]
[1729624112334,1.75530484,2626.3,2626.0,4.60384058]
[1729624112537,1.75530484,2626.3,2626.0,4.60376058]
[1729624112780,0.08481,2626.3,2626.0,8.41173058]
[1729624112980,0.08481,2626.3,2626.0,4.60375058]
[1729624113638,1.75530484,2626.3,2626.0,4.60375058]
[1729624113840,0.08481,2626.3,2626.0,9.27894806]
[1729624114355,1.75530484,2626.3,2626.0,5.47093806]
[1729624114873,1.67049484,2626.2,2626.0,5.47093806]
[1729624115061,1.75530484,2626.3,2626.0,5.47093806]
[1729624115262,0.08473452,2626.1,2626.0,5.47093806]
[1729624115462,1.67049484,2626.3,2626.0,5.47093806]
[1729624115666,0.08473452,2626.1,2626.0,4.60375058]
[1729624115864,1.67049484,2626.3,2626.0,4.60375058]
[1729624116183,1.67049484,2626.2,2626.0,4.60375058]
[1729624116476,0.08480279,2626.2,2626.0,4.60375058]
[1729624116779,1.67049484,2626.2,2626.0,4.60375058]
[1729624116955,0.08476505,2626.1,2626.0,4.60375058]
[1729624117981,1.75525989,2626.1,2626.0,0.79578058]
[1729624119271,1.75525989,2626.1,2625.9,5.37387058]
[1729624119582,1.75525989,2626.1,2625.9,1.56568058]
[1729624119759,0.08476505,2626.1,2625.9,1.56568058]
[1729624121445,1.67049484,2626.3,2626.0,3.80805]
[1729624121686,5.47800484,2626.4,2626.0,4.60383058]
[1729624122044,1.67049484,2626.3,2626.0,4.60383058]
[1729624122582,1.67049484,2626.3,2626.0,0.79578058]
[1729624123844,0.08491356,2626.2,2626.0,0.79578058]
[1729624124187,5.47813484,2626.3,2626.0,0.79578058]
[1729624124385,0.08490918,2626.2,2626.0,0.79578058]
[1729624124592,1.67049484,2626.1,2626.0,0.79578058]
[1729624124916,1.75533622,2626.1,2625.9,1.56568058]
[1729624125674,0.08484138,2626.1,2626.0,0.79578058]
[1729624129077,5.77515484,2626.3,2626.0,0.79578058]
[1729624129290,0.08203915,2626.2,2626.0,0.79578058]
[1729624129495,5.77515484,2626.3,2626.0,0.79578058]
[1729624129713,0.08200142,2626.1,2626.0,0.79578058]
[1729624130121,5.77515484,2626.3,2626.0,0.79578058]
[1729624130289,5.47815484,2626.3,2626.0,0.79578058]
[1729624131002,0.08203915,2626.2,2626.0,0.79578058]
[1729624131202,1.75253399,2626.2,2626.0,0.79578058]
[1729624131506,1.67049484,2626.2,2626.0,0.79578058]
[1729624131823,0.08198835,2626.1,2626.0,0.79578058]
[1729624133615,0.08198835,2626.1,2626.0,0.7978634]
[1729624134527,0.08198835,2626.1,2625.9,5.77247667]
[1729624135078,0.08198835,2626.1,2626.0,1.19444667]
[1729624135424,0.08198835,2626.1,2625.9,5.77247667]
[1729624135966,0.08198835,2626.1,2626.0,1.19444667]
[1729624136667,1.75248319,2626.1,2626.0,1.19444667]
[1729624137338,0.08198835,2626.1,2626.0,1.19444667]
[1729624137750,5.85740319,2626.1,2626.0,1.19444667]
[1729624138047,5.85740319,2626.1,2625.8,0.79892908]
[1729624138247,5.85740319,2626.1,2625.7,0.79892908]
[1729624138248,3.80821,2625.9,2625.7,0.79892908]
[1729624138461,1.67049484,2625.8,2625.7,0.79892908]
[1729624138644,1.75223903,2625.8,2625.6,0.79892908]
[1729624138853,1.67049484,2625.7,2625.6,0.79892908]
[1729624139076,1.67049484,2625.7,2625.6,1.19444667]
[1729624139279,1.75220128,2625.7,2625.6,1.19444667]
[1729624139483,0.08170644,2625.7,2625.5,1.19444667]
[1729624139645,0.08170644,2625.7,2625.6,5.24873458]
[1729624139840,1.67049484,2625.9,2625.6,6.8422837]
[1729624140039,1.67049484,2625.9,2625.8,0.79880836]
[1729624142874,0.67049484,2625.9,2625.8,0.79880836]
[1729624143178,3.77542484,2626.1,2625.8,0.79880836]
[1729624143479,1.67049484,2625.9,2625.8,0.79880836]
[1729624148791,5.47870484,2625.9,2625.8,0.79880836]
[1729624148997,5.47870484,2625.9,2625.6,2.63829712]
[1729624148998,3.80836,2625.8,2625.7,0.79880836]
[1729624149160,5.47885484,2625.8,2625.7,0.79876065]
[1729624149489,3.8085,2625.7,2625.6,0.79876065]
[1729624149847,5.47899484,2625.7,2625.5,0.79876065]
[1729624150253,1.67049484,2625.7,2625.5,0.79876065]
[1729624150983,0.0814243,2625.6,2625.5,0.79876065]
[1729624155549,0.0814243,2625.6,2625.4,0.79876065]
[1729624155894,0.0814243,2625.6,2625.5,0.79876065]
[1729624156097,0.0814243,2625.6,2625.4,1.62195488]
[1729624156513,0.0814243,2625.6,2625.5,0.79876065]
[1729624156814,1.67049484,2625.8,2625.5,0.79876065]
[1729624156967,0.08139813,2625.6,2625.5,0.79876065]
[1729624157163,1.67049484,2625.8,2625.5,1.92581139]
[1729624157481,0.08143589,2625.7,2625.5,1.92581139]
[1729624158009,0.08139813,2625.6,2625.5,1.92581139]
[1729624158211,5.47886484,2625.8,2625.5,1.92581139]
[1729624158390,0.08143589,2625.7,2625.5,1.92581139]
[1729624158579,5.47886484,2625.8,2625.6,0.65579356]
[1729624158777,0.08143589,2625.7,2625.5,1.92581139]
[1729624158978,5.47886484,2625.8,2625.5,1.92581139]
[1729624159208,0.08143589,2625.7,2625.5,1.92581139]
[1729624159411,1.67049484,2625.9,2625.5,5.73453139]
[1729624159713,0.08147364,2625.8,2625.6,2.64602804]
[1729624160071,1.67049484,2625.9,2625.6,2.64602804]
[1729624160580,0.08147364,2625.8,2625.6,2.64602804]
[1729624162103,0.08147364,2625.8,2625.6,6.45456804]
[1729624162312,0.08147364,2625.8,2625.7,1.03394586]
[1729624162641,0.0814518,2625.8,2625.7,5.64120651]
[1729624163078,1.67049484,2625.9,2625.7,5.64120651]
[1729624163281,0.08142561,2625.8,2625.7,4.60726065]
[1729624163926,1.67049484,2625.9,2625.7,4.60726065]
[1729624164129,0.08142561,2625.8,2625.7,0.79876065]
[1729624164997,0.08142561,2625.8,2625.7,3.88466605]
[1729624165188,1.67049484,2626.1,2625.7,5.00671254]
[1729624165390,1.67049484,2626.1,2625.8,5.56521671]
[1729624165391,0.07882802,2626.0,2625.8,5.56521671]
[1729624166787,1.74932286,2626.0,2625.8,5.56521671]
[1729624168086,1.74932286,2626.0,2625.9,0.7822]
[1729624168087,0.07882802,2626.0,2625.9,0.7822]
[1729624168484,0.07882802,2626.0,2625.9,1.58028746]
[1729624168741,0.07882802,2626.0,2625.9,2.33485039]
[1729624168897,1.67049484,2626.1,2625.9,2.33485039]
[1729624169095,0.07885426,2626.0,2625.9,2.33485039]
[1729624170310,1.7493491,2626.0,2625.9,2.33485039]
[1729624170510,1.7493491,2626.0,2625.8,0.79808746]
[1729624170710,1.67049484,2625.9,2625.8,0.79808746]
[1729624171002,1.74674625,2625.9,2625.8,0.79808746]
[1729624173603,0.07625141,2625.9,2625.8,5.79157254]
[1729624173948,3.8077,2626.3,2625.8,5.79157254]
[1729624173949,1.67049484,2626.1,2625.8,5.79157254]
[1729624174146,0.07626455,2625.9,2625.8,6.18690912]
[1729624174348,1.67049484,2626.1,2625.8,6.98995366]
[1729624174507,1.67049484,2626.2,2625.9,4.60658192]
[1729624174848,1.67049484,2626.2,2626.0,0.79838192]
[1729624175601,3.8075,2626.4,2626.1,1.58338192]
[1729624175602,3.80754,2626.4,2626.1,1.58338192]
[1729624175838,1.67049484,2626.2,2626.1,0.785]
[1729624177830,1.67049484,2626.3,2626.1,0.785]
[1729624178152,1.67049484,2626.4,2626.2,3.8077]
[1729624178356,1.67049484,2626.4,2626.2,4.60608192]
[1729624178508,1.67049484,2626.3,2626.1,6.43097068]
[1729624178846,1.67049484,2626.4,2626.2,5.74979356]
[1729624179212,1.67049484,2626.4,2626.2,4.95141164]
[1729624180346,1.67049484,2626.4,2626.2,5.74979356]
[1729624180559,1.67049484,2626.4,2626.2,4.95141164]
[1729624180707,1.67049484,2626.3,2626.2,1.14365164]
[1729624180912,1.67049484,2626.3,2626.1,0.79838192]
[1729624181108,5.47827484,2626.2,2626.1,0.79838192]
[1729624181960,5.47827484,2626.2,2626.0,0.79838192]
[1729624182140,1.67049484,2626.1,2626.0,0.79838192]
[1729624182451,5.47821484,2626.3,2625.9,5.00562571]
[1729624182748,1.67049484,2626.2,2626.1,0.79823437]
[1729624183655,1.74237313,2626.2,2626.1,0.79823437]
[1729624184558,1.74237313,2626.2,2626.0,0.79823437]
[1729624187568,1.67049484,2626.2,2626.0,0.79823437]
[1729624187757,1.67049484,2626.2,2626.0,4.60628437]
[1729624187941,0.06936379,2626.1,2626.0,4.60628437]
[1729624188135,1.67049484,2626.3,2626.0,4.60628437]
[1729624188334,1.67049484,2626.3,2626.1,4.60603437]
[1729624188544,0.06940153,2626.2,2626.1,4.60603437]
[1729624188738,1.67049484,2626.3,2626.1,5.56719238]
[1729624189074,0.06709315,2626.2,2626.1,5.56719238]
[1729624189444,1.67049484,2626.3,2626.1,5.56719238]
[1729624189642,0.06709315,2626.2,2626.1,5.56719238]
[1729624190469,1.67049484,2626.3,2626.1,5.56719238]
[1729624190651,1.67049484,2626.4,2626.2,1.05727381]
[1729624190854,1.67049484,2626.3,2626.2,1.05727381]
[1729624191166,1.67049484,2626.4,2626.1,4.60603437]
[1729624191383,1.67049484,2626.3,2626.1,5.36883437]
[1729624191754,1.67049484,2626.3,2626.2,3.80778]
[1729624193142,3.8067,2627.0,2626.4,3.80741]
[1729624193343,1.67049484,2626.6,2626.3,3.80763]
[1729624194270,1.67049484,2626.5,2626.3,1.03738001]
[1729624194482,1.67049484,2626.6,2626.3,1.03738001]
[1729624194641,1.67049484,2626.5,2626.3,4.84500001]
[1729624194845,1.67049484,2626.6,2626.3,4.84500001]
[1729624195055,1.67049484,2626.5,2626.3,1.03738001]
[1729624195251,1.67049484,2626.4,2626.3,1.03738001]
[1729624195902,1.73309228,2626.4,2626.3,1.03738001]
[1729624196058,1.73309228,2626.4,2626.2,4.60588437]
[1729624196711,0.06259744,2626.4,2626.2,4.60588437]
[1729624196885,0.06259744,2626.4,2626.2,0.79823437]
[1729624197061,1.73309228,2626.4,2626.2,0.79823437]
[1729624197903,0.06259744,2626.4,2626.2,0.79823437]
[1729624198261,0.06259744,2626.4,2626.2,4.60601437]
[1729624198457,0.06259744,2626.4,2626.2,5.64344238]
[1729624200099,0.06259744,2626.4,2626.2,1.83566238]
[1729624200455,0.06259744,2626.4,2626.2,1.03742801]
[1729624200656,0.06259744,2626.4,2626.2,1.83566238]
[1729624201384,1.67049484,2626.6,2626.2,5.64342238]
[1729624201600,0.0627553,2626.5,2626.3,1.14877567]
[1729624202560,0.0627553,2626.5,2626.2,0.79823437]
[1729624203489,0.0627553,2626.5,2626.3,0.79823437]
[1729624206102,0.0627553,2626.5,2626.4,0.8263]
[1729624206274,0.0627553,2626.5,2626.4,5.43202437]
[1729624206609,3.80679,2626.9,2626.4,5.43202437]
[1729624206610,1.67049484,2626.9,2626.4,5.83128571]
[1729624206761,0.0608069,2626.8,2626.5,1.76198958]
[1729624206956,3.76835215,2627.0,2626.6,0.8263]
[1729624207158,9.28357484,2627.1,2626.6,1.62439801]
[1729624207358,1.73137717,2627.0,2626.6,1.62439801]
[1729624207611,0.06088233,2627.0,2626.7,0.79809801]
[1729624207903,0.06088233,2627.0,2626.6,5.55985001]
[1729624207904,0.06088233,2627.0,2626.6,6.35794802]
[1729624208108,1.73137717,2627.0,2626.7,0.79809801]
[1729624208310,1.67049484,2627.0,2626.6,6.35794802]
[1729624208472,0.06091474,2626.9,2626.6,6.35794802]
[1729624208659,0.06091474,2626.9,2626.7,2.03075554]
[1729624208864,1.73140958,2626.9,2626.7,1.23265753]
[1729624209060,1.73140958,2626.9,2626.7,2.03075554]
[1729624209259,1.73140958,2626.9,2626.7,1.23265753]
[1729624211743,0.06091474,2626.9,2626.7,1.23265753]
[1729624211908,0.06091474,2626.9,2626.8,0.66641855]
[1729624212339,0.06091474,2626.9,2626.7,5.83780554]
[1729624212551,1.67049484,2627.1,2626.8,0.8176]
[1729624212706,5.47669484,2627.3,2626.8,0.8176]
[1729624213055,3.80582,2627.6,2626.9,4.60473801]
[1729624213256,1.67049484,2627.4,2627.0,0.8176]
[1729624213574,3.80582,2627.6,2627.0,7.09275285]
[1729624213872,1.67049484,2627.4,2627.0,5.42225801]
[1729624214049,0.05685939,2627.3,2627.1,0.79809801]
[1729624214208,0.05685939,2627.3,2627.1,0.8176]
[1729624214408,3.80553,2627.8,2627.2,3.61414376]
[1729624214624,3.80553,2627.8,2627.2,2.6656273]
[1729624214625,1.72762978,2627.7,2627.2,2.6656273]
[1729624214820,1.72762978,2627.7,2627.2,1.86752929]
[1729624215033,1.72762978,2627.7,2627.2,2.6656273]
[1729624215245,1.72762978,2627.7,2627.2,6.4719473]
[1729624215542,0.05713494,2627.7,2627.3,0.72330908]
[1729624215906,5.47602484,2627.8,2627.3,0.72330908]
[1729624216107,0.05694041,2627.6,2627.3,0.64719473]
[1729624216435,0.05690271,2627.5,2627.3,0.72330905]
[1729624216624,5.47602484,2627.8,2627.4,0.827]
[1729624216945,0.05715768,2627.7,2627.4,1.25046189]
[1729624217353,5.47602484,2627.8,2627.4,1.25046189]
[1729624217561,0.05711998,2627.6,2627.4,1.25046189]
[1729624217852,3.80416,2628.7,2627.6,0.7592]
[1729624218006,3.80416,2628.7,2627.5,5.55242535]
[1729624218007,5.47518484,2628.4,2627.8,2.42969484]
[1729624218220,3.8048,2628.3,2627.8,2.42969484]
[1729624218445,3.8048,2628.3,2627.8,0.7592]
[1729624218446,5.47529484,2628.3,2627.8,0.7592]
[1729624218615,3.80491,2628.2,2627.8,0.7592]
[1729624218809,5.47540484,2628.2,2627.8,1.44509554]
[1729624219206,5.47524484,2628.3,2627.8,1.44509554]
[1729624219447,1.67049484,2628.0,2627.8,1.44509554]
[1729624219654,1.67049484,2627.9,2627.8,1.44509554]
[1729624220010,3.80475,2628.3,2627.8,1.44509554]
[1729624220011,3.80474,2628.3,2627.8,1.44509554]
[1729624220245,1.67049484,2628.1,2627.8,1.44509554]
[1729624220553,1.67049484,2628.0,2627.9,0.20762581]
[1729624220759,1.67049484,2628.1,2627.9,0.20762581]
[1729624223352,1.67049484,2628.0,2627.9,0.20762581]
[1729624223557,1.67049484,2628.0,2627.8,0.7592]
[1729624223849,1.67049484,2627.9,2627.6,3.79809801]
[1729624224060,1.67049484,2627.7,2627.6,3.79809801]
[1729624224613,1.67049484,2627.7,2627.6,0.79809801]
[1729624227551,1.67049484,2627.7,2627.4,3.0]
[1729624227760,1.67049484,2627.6,2627.3,0.7542]
[1729624227917,1.67049484,2627.6,2627.3,1.5900748]
[1729624228439,0.05550966,2627.5,2627.3,1.5900748]
[1729624228953,1.67049484,2627.6,2627.3,1.5900748]
[1729624229252,1.7260045,2627.5,2627.3,1.5900748]
[1729624229416,1.67049484,2627.6,2627.3,1.5900748]
[1729624229616,0.05562985,2627.4,2627.3,4.5900748]
[1729624229818,1.67049484,2627.8,2627.3,4.5900748]
[1729624230018,1.67049484,2627.7,2627.4,1.00668896]
[1729624230217,1.72623783,2627.7,2627.4,1.00668896]
[1729624232061,1.78273535,2627.7,2627.4,1.00668896]
[1729624233125,0.11224051,2627.7,2627.4,1.00668896]
[1729624233563,1.67049484,2627.8,2627.4,1.00668896]
[1729624233731,0.11236575,2627.6,2627.4,1.00668896]
[1729624233929,1.67049484,2627.8,2627.5,0.8567019]
[1729624234345,1.67049484,2627.7,2627.5,0.8567019]
[1729624234526,5.47575484,2628.0,2627.4,1.00668896]
[1729624235040,1.67049484,2627.9,2627.4,1.00668896]
[1729624236932,5.47575484,2628.0,2627.4,1.00668896]
[1729624237329,5.47575484,2628.0,2627.4,1.08279999]
[1729624237675,5.47575484,2628.0,2627.4,1.00668896]
[1729624240272,1.67049484,2627.9,2627.4,1.00668896]
[1729624240570,1.67049484,2627.9,2627.3,7.56037]
[1729624240868,1.67049484,2627.9,2627.3,0.7542]
[1729624241071,5.47587484,2627.9,2627.3,0.7542]
[1729624241277,3.80538,2627.9,2627.3,5.42469484]
[1729624241475,5.47575484,2628.0,2627.3,9.23087484]
[1729624241632,5.47581484,2627.9,2627.3,5.42469484]
[1729624241832,5.47583484,2627.9,2627.3,5.94805448]
[1729624242064,3.80534,2627.9,2627.3,9.75421448]
[1729624242336,5.47567484,2628.0,2627.4,3.80604]
[1729624242645,3.80518,2628.0,2627.4,5.47653484]
[1729624243056,3.80518,2628.0,2627.5,0.8202]
[1729624243732,0.11211302,2627.9,2627.5,0.8202]
[1729624243958,0.11211302,2627.9,2627.5,7.27857429]
[1729624244156,0.11211302,2627.9,2627.7,1.67049484]
[1729624244397,3.80503,2628.1,2627.6,1.67049484]
[1729624244573,0.11207747,2627.8,2627.6,1.67049484]
[1729624244761,3.80503,2628.1,2627.6,1.67049484]
[1729624244960,0.11204192,2627.7,2627.6,1.67049484]
[1729624245188,3.80503,2628.1,2627.6,1.11607253]
[1729624245378,3.80503,2628.1,2627.5,6.45837429]
[1729624245379,0.11204192,2627.7,2627.5,6.45837429]
[1729624245578,3.80503,2628.1,2627.5,6.53448237]
[1729624245896,3.80503,2628.1,2627.5,6.45837429]
[1729624246102,3.80503,2628.1,2627.6,0.8202]
[1729624247600,5.47540484,2628.2,2627.6,2.49069484]
[1729624248102,5.47540484,2628.2,2627.6,0.8202]
[1729624248317,1.67049484,2628.3,2627.7,0.8096]
[1729624248465,5.47524484,2628.3,2627.7,0.8096]
[1729624248664,9.27978484,2628.4,2627.8,3.80546]
[1729624248888,1.67049484,2628.3,2627.8,3.80546]
[1729624249078,1.67049484,2628.3,2627.8,4.92542463]
[1729624249281,5.47511484,2628.4,2627.8,6.59591947]
[1729624249485,5.47511484,2628.4,2627.8,4.92542463]
[1729624249690,1.67049484,2628.3,2627.8,4.92542463]
[1729624250094,9.27979484,2628.4,2627.8,4.92542463]
[1729624250262,9.27979484,2628.4,2627.9,0.60957045]
[1729624250466,5.47524484,2628.3,2627.9,0.60957045]
[1729624250678,1.67049484,2628.2,2627.9,0.60957045]
[1729624251109,3.80475,2628.3,2627.9,0.60957045]
[1729624251110,5.47524484,2628.3,2627.9,0.60957045]
[1729624251415,5.47524484,2628.3,2627.7,6.28561484]
[1729624253100,9.28009484,2628.3,2627.7,7.08371285]
[1729624253305,5.58766803,2628.2,2627.7,5.41329801]
[1729624253512,5.58766803,2628.2,2627.7,6.72018981]
[1729624254123,5.58766803,2628.2,2627.7,2.91458981]
[1729624254264,1.78277803,2628.2,2627.7,6.72016981]
[1729624255782,1.67049484,2628.1,2627.7,6.72016981]
[1729624255982,1.78277803,2628.2,2627.7,6.72016981]
[1729624256283,0.11224765,2628.1,2627.8,0.79809801]
[1729624257669,0.11224765,2628.1,2627.9,0.79809801]
[1729624257874,5.47525484,2628.3,2627.9,0.79809801]
[1729624258074,0.11234456,2628.2,2627.9,0.79809801]
[1729624258384,5.47525484,2628.3,2627.9,0.79809801]
[1729624258583,0.11230902,2628.1,2627.9,0.79809801]
[1729624258788,5.47525484,2628.3,2627.9,0.79809801]
[1729624258984,0.11227347,2628.0,2627.9,0.79809801]
[1729624259186,5.47525484,2628.3,2627.8,1.48228661]
[1729624259474,5.47525484,2628.3,2628.0,0.79778295]
[1729624260267,5.47539484,2628.2,2628.0,0.79778295]
[1729624260833,3.80468,2628.4,2628.1,1.61148295]
[1729624260972,1.67049484,2628.3,2628.1,0.8137]
[1729624261175,5.47543484,2628.2,2628.0,0.79778295]
[1729624263216,1.67049484,2628.1,2628.0,0.79778295]
[1729624263509,3.80517,2628.0,2627.8,1.19749571]
[1729624263708,1.67049484,2628.0,2627.9,1.19749571]
[1729624263907,5.47566484,2628.0,2627.9,0.79824934]
[1729624264315,3.80517,2628.0,2627.9,0.79824934]
[1729624264502,5.47558484,2628.1,2627.9,0.79824934]
[1729624265223,3.80509,2628.1,2627.9,0.79824934]
[1729624265518,7.60836,2628.7,2628.0,0.79824934]
[1729624265719,7.60836,2628.7,2627.9,0.79824934]
[1729624265720,5.47540484,2628.2,2627.9,0.79824934]
[1729624266012,5.47540484,2628.2,2628.0,0.79824934]
[1729624266203,5.47540484,2628.2,2627.9,0.79824934]
[1729624267526,3.80506,2628.1,2627.9,0.79824934]
[1729624267683,5.47555484,2628.1,2627.9,0.79824934]
[1729624268127,1.67049484,2628.1,2628.0,0.79824934]
[1729624268296,9.28040484,2628.2,2627.9,0.79824934]
[1729624268485,3.80509,2628.1,2628.0,0.79824934]
[1729624269200,3.80509,2628.1,2627.9,0.79824934]
[1729624269731,5.47537484,2628.2,2628.0,0.79824934]
[1729624269926,3.80503,2628.1,2628.0,0.79824934]
[1729624271846,3.80503,2628.1,2627.9,0.79824934]
[1729624271847,5.47552484,2628.1,2627.9,0.79824934]
[1729624272633,3.80489,2628.2,2627.9,0.79824934]
[1729624272943,5.47538484,2628.2,2628.0,0.79824934]